Cogmind - Beta 16.1 @@@ ROGUE MODE // 2026.04.04 @ 19:38:26 // Winter2022/Polymind Player: the Result: Destroyed by G-47 Trooper with Particle Gun Performance ------------- Evolutions (0) 0 Regions Visited (1) 200 Robots Destroyed (0) 0 Value Destroyed (0) 0 Prototype IDs (0) 0 Alien Tech Used (0) 0 Bonus (610) 610 TOTAL SCORE: 240 Bonus ------- Polymind Skill 610 Cogmind --------- Core Integrity 0/250 Matter 0/0 Energy 100/100 System Corruption 0% Temperature Cool (23) Movement Core (50) Location -10/Materials Parts ------- > --- POWER (1) -------- (None) > --- PROPULSION (2) --- (None) > --- UTILITY (2) ------ (None) > --- WEAPON (2) ------- (None) > --- INVENTORY (0) ---- (None) Peak State ------------ None Favorites ----------- Power None Propulsion None Utility None Weapon None Build | -11 -10 ------- Run | Yrd Mat Slots Evolved . | . . Power . | . . Propulsion . | . . Utility . | . . Weapon . | . . Parts Attached . | . . Power . | . . Engine . | . . Core . | . . Reactor . | . . Propulsion . | . . Treads . | . . Leg . | . . Wheel . | . . Hover . | . . Flight . | . . Utility . | . . Device . | . . Storage . | . . Processor . | . . Hackware . | . . Protection . | . . Artifact . | . . Weapon . | . . Energy Gun . | . . Energy Cannon . | . . Ballistic Gun . | . . Ballistic Cannon . | . . Launcher . | . . Special Weapon . | . . Impact Weapon . | . . Slashing Weapon . | . . Piercing Weapon . | . . Special Melee Weapon . | . . Unidentified Prototypes . | . . Parts Lost . | . . Power . | . . Propulsion . | . . Utility . | . . Weapon . | . . Highest Loss Streak . | . . To Critical Strikes . | . . Average Backups . | . . Power . | . . Propulsion . | . . Utility . | . . Weapon . | . . Tool/Special . | . . Unused Backups . | . . Power . | . . Propulsion . | . . Utility . | . . Weapon . | . . Tool/Special . | . . Average Slot Usage (%) . | . . Peak Build Rating . | . . Average Rating . | . . On Entrance . | . . Avg Prop Armor Cover (%) . | . . Naked Turns 111 | . 111 Heaviest Build . | . . Greatest Support 3 | 3 3 Greatest Overweight (x) . | . . Average Overweight (x) . | . . Largest Inventory Capacity . | . . Average Capacity . | . . Most Carried . | . . Average Carried . | . . Final Capacity . | . . Final Carried . | . . Class Distribution -------------------- 100% | Cogmind Dominant Class ---------------- Cogmind | -10/Materials Resources | -11 -10 ----------- Run | Yrd Mat Matter Collected . | . . Remotely . | . . Salvage Created . | . . Parts . | . . Haulers Intercepted . | . . Recyclers Shooed . | . . Parts Field Recycled . | . . Retrieved Matter . | . . Parts Self-Destructed . | . . Prevented . | . . Parts Restored . | . . Kills | -11 -10 ------- Run | Yrd Mat Combat Hostiles Destroyed . | . . Classes Destroyed . | . . Best Kill Streak . | . . Combat Bots Only . | . . Max Kills in Single Turn . | . . Gunslinging . | . . Exploded . | . . Melee . | . . Uniques/NPCs Destroyed . | . . Combat | -11 -10 -------- Run | Yrd Mat Hostile Shots Fired 25 | . 25 Missed 6 | . 6 Hits 19 | . 19 Projectile 19 | . 19 Critical Strikes 1 | . 1 Damage Taken 258 | . 258 Core 258 | . 258 Absorbed by Shields . | . . Core Remaining (%) 100 | 100 . Volleys Fired . | . . Largest . | . . Hottest . | . . Shots Fired . | . . Gun . | . . Cannon . | . . Launcher . | . . Special . | . . Kinetic . | . . Thermal . | . . Explosive . | . . Electromagnetic . | . . Robot Hit Streak . | . . Robot Miss Streak . | . . Penetration Max . | . . Secondary Targets . | . . Shots Hit Robots . | . . Core Hits . | . . Critical Kills . | . . Critical Parts Destroyed . | . . Critical Strikes . | . . Melee Attacks . | . . Impact . | . . Slashing . | . . Piercing . | . . Sneak Attacks . | . . Combat Hostiles . | . . Follow-up Attacks . | . . Damage Inflicted . | . . Guns . | . . Cannons . | . . Explosions . | . . Melee . | . . Ramming . | . . Kinetic . | . . Thermal . | . . Explosive . | . . Electromagnetic . | . . Impact . | . . Slashing . | . . Piercing . | . . Highest Corruption . | . . Average Corruption . | . . Corruption Purged . | . . Corruption Blocked . | . . Overload Shots . | . . Overflow Damage . | . . Projectiles . | . . Explosions . | . . Melee . | . . Knockbacks . | . . Impact . | . . Kinetic . | . . Secondary . | . . Self-Inflicted Damage . | . . Shots . | . . Rammed . | . . Targets Rammed . | . . Kicked . | . . Crushed . | . . Highest Temperature 8 | . 8 Average Temperature 8 | . 8 Received Heat Transfer 162 | . 162 Siege Activations . | . . Martial Activations . | . . Shielding Activations . | . . Robots Disrupted . | . . Combat Hostiles . | . . Robots Corrupted . | . . Combat Hostiles . | . . Parts Fried . | . . Impact Corruptions . | . . Robots Melted . | . . Combat Hostiles . | . . Parts Melted . | . . Heat Transferred . | . . Parts Sabotaged . | . . Parts Stolen . | . . Parts Stripped . | . . Power Chain Reactions . | . . Alert | -11 -10 ------- Run | Yrd Mat Maximum Alert Level . | . . Low Security (%) 100 | 100 100 Level 1 . | . . Level 2 . | . . Level 3 . | . . Level 4 . | . . Level 5 . | . . High Security . | . . Max Security . | . . Peak Influence . | . . Initial . | . . Average . | . . Influence Increases . | . . Influence Decreases . | . . Squads Dispatched 1 | . 1 Investigation . | . . Extermination . | . . Reinforcement 1 | . 1 Assault . | . . Garrison . | . . Intercept . | . . Searches Triggered . | . . Construction Impeded . | . . Haulers Reinforced . | . . Active Scanning Responses . | . . Cargo Convoy Interrupts . | . . Stealth | -11 -10 --------- Run | Yrd Mat Distress Signals . | . . Communications Jammed . | . . Distress Signals . | . . Times Spotted 9 | . 9 Peak Tracking Total 6 | . 6 Tactical Retreats . | . . Traps | -11 -10 ------- Run | Yrd Mat Traps Triggered 3 | . 3 Indirectly . | . . Trap Hack Attempts . | . . Triggered . | . . Disarmed . | . . Reprogrammed . | . . Reused . | . . Traps Extracted . | . . Installed . | . . Triggered . | . . Machines | -11 -10 ---------- Run | Yrd Mat Machines Disabled . | . . Max in Single Turn . | . . Machines Repaired . | . . Machines Dismantled . | . . Machines Sabotaged . | . . Overloaded Fab Kills . | . . Hacking | -11 -10 --------- Run | Yrd Mat Machines Accessed 1 | . 1 Terminals 1 | . 1 Fabricators . | . . Repair Stations . | . . Recycling Units . | . . Scanalyzers . | . . Garrison Access . | . . Total Hacks 2 | . 2 Successful . | . . Failed 2 | . 2 Catastrophic . | . . Database Lockouts . | . . Manual 2 | . 2 Terminals 2 | . 2 Fabricators . | . . Repair Stations . | . . Recycling Units . | . . Scanalyzers . | . . Garrison Access . | . . Terminal Hacks . | . . Fabricator Hacks . | . . Repair Station Hacks . | . . Recycling Unit Hacks . | . . Scanalyzer . | . . Garrison Access Hacks . | . . Unauthorized Hacks . | . . Terminals . | . . Fabricators . | . . Repair Stations . | . . Recycling Units . | . . Scanalyzers . | . . Garrison Access . | . . Data Cores Recovered . | . . Used . | . . Hacking Detections 1 | . 1 Full Trace Events . | . . Feedback Events . | . . Feedback Blocked . | . . Robot Schematics Acquired . | . . Robots Built . | . . Authchips . | . . Time . | . . Total Robot Build Rating . | . . Part Schematics Acquired . | . . Parts Built . | . . Authchips . | . . Time . | . . Total Part Build Rating . | . . Part Studies Acquired . | . . Parts Repaired . | . . Time . | . . Parts Recycled . | . . Recycled Matter . | . . Retrieved Matter . | . . Retrieved Components . | . . Parts Scanalyzed . | . . Part Schematics Acquired . | . . Parts Damaged . | . . Bothacking | -11 -10 ------------ Run | Yrd Mat Used RIF Installer . | . . Robots Hacked . | . . Non-combat . | . . Combat . | . . Robot Hacks Applied . | . . Relay Couplers Released . | . . Fabnet Peak Effective % . | . . Robots Rewired . | . . Allies Hacked . | . . Hacks Repelled . | . . Allies | -11 -10 -------- Run | Yrd Mat Total Allies . | . . Largest Group . | . . Highest-Rated Group . | . . Highest-Rated Ally . | . . Total Orders . | . . Ally Attacks . | . . Total Damage . | . . Kills . | . . Allies Corrupted . | . . Allies Melted . | . . Intel | -11 -10 ------- Run | Yrd Mat Active Infowar (turns) . | . . Robot Analysis Total . | . . Derelict Logs Recovered . | . . Drone Launches . | . . Drone Recoveries . | . . Exploration | -11 -10 ------------- Run | Yrd Mat Turns Passed 121 | 10 111 Spaces Moved 231 | 19 212 Core 231 | 19 212 Treads . | . . Legs . | . . Wheels . | . . Hover . | . . Flight . | . . Fastest Speed 50 | 50 50 Average Speed 50 | 50 50 Slowest Speed 50 | 50 50 Overloaded Moves . | . . Propulsion Burnouts . | . . Robots Hopped . | . . Potential Cave-ins . | . . Cave-ins Triggered . | . . Exploration Rate (%) 30 | 4 57 Regions Visited 1 Branch Regions . Pre-discovered Areas . | . . Known Exits Taken . | . . Unknown Exits Taken 1 | 1 . Scrap Searched . | . . Spaces Dug . | . . Terrain Destroyed . | . . Melee . | . . Projectile . | . . AOE . | . . Terrain Rammed . | . . Walls Destroyed . | . . Machines Disabled . | . . Actions | -11 -10 --------- Run | Yrd Mat Total 235 | 18 217 Wait 5 | . 5 Move 230 | 18 212 Hop . | . . Pick Up . | . . Fast Attach . | . . Attach . | . . Detach . | . . Swap . | . . Drop . | . . Fire . | . . Melee . | . . Ram . | . . Kick . | . . Crush . | . . Escape Stasis . | . . Rewire . | . . Trap . | . . Miscellaneous . | . . Route ------- -11/Scrapyard -10/Materials (discovered 2 exits: [*Mat x2]) History --------- Turn | Location | Event 4 | -11/Scrapyard | Discovered new exit (range 13) 11 | -11/Scrapyard | Entered Materials 87 | -10/Materials | Discovered new exit (range 10) 109 | -10/Materials | Discovered new exit (range 16) 117 | -10/Materials | Core integrity fell below 50% 121 | -10/Materials | Core integrity fell below 20% 122 | -10/Materials | Destroyed by G-47 Trooper with Particle Gun Last Messages --------------- 00044_ Connecting with Terminal... 00044_ Current location identified: Materials 00046_ Triggered Blade Trap. 00046_ Massive razor-sharp blades shoot up from within the floor. 00057_ K-01 Serf collects debris. 00058_ O-16 Technician uses terminal to summon reinforcements. 00058_ ALERT: Hostiles spotted, dispatching reinforcements to Terminal M007. 00058_ O-16 Technician locks terminal. 00079_ K-01 Serf collects debris. 00083_ Triggered Blade Trap. 00083_ Massive razor-sharp blades shoot up from within the floor. 00087_ EXIT=FOUND 00097_ K-01 Serf collects debris. 00099_ Triggered Blade Trap. 00099_ Massive razor-sharp blades shoot up from within the floor. 00100_ K-01 Serf collects debris. 00109_ EXIT=FOUND 00115_ K-01 Serf collects debris. 00121_ Critical hit (Burn: +37). Map ----- +----------------------------------------------------+ | ???????????????????????????????##+#???# | | ???????????????????????#######??# #???# | | ???????????????????????# ??# #???# | | ???????????????????????# ## ##### | | ???????????????????????# # | | ???????????????????????# %= + | | ???????????????????????# ! # | | ???????????????????????# = # #####/ | | ???????????????????????# ?# #?? | | ??????????????? ???????# """ "?# # """ | | ??????????????? ???????# """ ??# # """ | | ??????????????? ???????# """ ??# # """ | | ??????????????? ????????? ???# # | | ??????????????? ?????????###???# # """ | | ??????????????? ???????????????# # """ | | ??????????????# ???????????????# # """ | | ??????????????# #???????######## #?? | | ??????????????# #???????# """ # #???#+ | | ??????????????# #???????# "T" # ##### | | ??????????????# #???????# # | | ??????????????# #???????? + | | ??????######### #???????? # "T" ^ | | ??????# ## #?????????? # ^ | | ??????# ## #############+## | | ??????# =!| # r | | ??????# =!| # @ gr | | ??????# !|| r g u | | ??????# #g #######+####### | | ??????###+#### g #????? #?????### ###" | | ?????#### #????? #??###??# #?## | | ?????# #????" #?? ??# #??? | | ?????# w #???? #??""" ?# #??? | | ?????# #### #??? #?"""""?# #### | | ?????#????# #??? ] # """"" # ## | | ??????????# #??###### """"" # | | ??????????# ^ ^ #???????# """ + | | ??????????# #???????# # | | ??????????#+## #???????# ! ###### | | ?????????????# #???????# "Y" ??????## | | ?????????????# #???????# """ %???????# | | ?????????????# #???????# ????????# | | ?????????????+ +???????######????????# | | ?????????????# < #???????????????????? | | ?????????????# #??????????????????? | | ?????????????#####??????????????????! | | ???????????????????????????????????#! | | ???????????????????????????????????#! | | ???????????????????????????????????##! | | ????????????????????????????????????##### | | ????????????????????????????????????????? | +----------------------------------------------------+ Best States ------------- Heat Dissipation 25 Energy Generation 5 Energy Capacity 100 Sight Range 16 Terrain Scan Density 10 Evasion (%) 50 Item Schematics ----------------- None Robot Schematics ------------------ None Fabricated ------------ Nothing Repaired ---------- Nothing Studied --------- None Alien Tech Used ----------------- None Achievements -------------- None Challenges ------------ None Polymind | -11 -10 ---------- Run | Yrd Mat Hosts . | . . Combat Hostiles . | . . Allies . | . . Unique Host Classes . | . . Average Host Suspicion . | . . Unsuspicious Activity . | . . Returns to Shadow . | . . Fuzzy Dispatches . | . . Protomatter Created . | . . Used . | . . Decayed . | . . Highest Spend . | . . Game ------ Seed OmegaDrainedDeflector Manual? 0 Play Time 00:02:29 Cumulative 691.9 hours Start 2026.04.04 @ 19:37:08 End 2026.04.04 @ 19:38:26 Sessions 1 Manual Loads 0 Difficulty Rogue Special Mode Winter2022/Polymind Game No. 387 Rogue 387 Adventurer 0 Explorer 0 Win Type - Total 30 Types 15/1/6/2/1/1/1/2/1/0 Lore% 93 Gallery% 87 Achievement% 78 Wizard Run 0 Options --------- Layout 0 ASCII 0 Keyboard 0 Movement Numpad Keybinds 0 Fullscreen 2 Font 24/Smallcaps Map View 76x50 Zoom Use 0% Tactical HUD 1 Map Filters NONE Filters NONE Steam 1 RUN: 5d24cf97-a017-4a96-b839-7c26150e03da